[Event "BL 2024-25"]
[Site "Austria"]
[Date "2024.10.12"]
[Round "4.25"]
[White "Deuer, Marius"]
[Black "Gupta, Abhijeet"]
[Result "1/2-1/2"]
[Annotator "TA"]
[ECO "D71"]
[WhiteElo "2477"]
[BlackElo "2573"]
[PlyCount "105"]
[EventDate "2024.08.28"]
[EventType "team-tourn"]
[EventCountry "AUT"]
[SourceTitle "playchess.com"]
[Source "ChessBase"]
[SourceQuality "1"]
[WhiteTeam "Salzburg"]
[BlackTeam "Wien-St Veit"]
[TimeControl "40/5400+30:1800+30"]

{[%evp 9,105,7,14,10,3,-4,4,16,14,-7,0,-4,-16,-4,-18,-29,-17,-31,-12,-45,0,0,10,0,0,0,0,0,6,8,22,22,17,16,25,18,31,32,87,62,104,104,104,34,33,31,75,72,77,78,87,46,37,49,44,27,23,11,28,28,30,32,38,0,0,0,0,0,0,0,0,0,0,0,0,0,0,0,0,0,37,37,177,173,166,156,246,255,266,266,256,24,163,0,205,0,152,0]} 1. d4 {[%emt 0:00:03]} Nf6 {[%emt 0:00:17]} 2. c4 {[%emt 0:00:07]} g6 {[%emt 0:00:24]} 3. g3 {[%emt 0:00:07]} c6 {[%emt 0:00:15]} 4. Bg2 {[%emt 0:00:08]} d5 {[%emt 0:00:09]} 5. Qa4 {[%emt 0:00:06]} Bg7 {[%emt 0:00:40]} 6. cxd5 {[%emt 0:00:22]} Nxd5 {[%emt 0:00:06]} 7. Nf3 {[%emt 0:00:07]} Bg4 {[%emt 0:00:19]} 8. e3 {[%emt 0:11:58] The position is equal.} O-O {[%emt 1:32:20]} 9. O-O {[%emt 0:01:11]} Na6 {[%emt 0:00:00]} 10. h3 {[%emt 0:15:57]} Bxf3 {[%emt 0:00:00]} 11. Bxf3 {[%emt 0:00:07]} e5 {[%emt 0:00:00]} 12. Rd1 {[%emt 0:13:11]} Nb6 {[%emt 0:00:00]} 13. Qb3 {[%emt 0:03:58]} Qf6 {[%emt 0:00:00]} 14. Kg2 {[%emt 0:08:34]} exd4 {[%emt 0:00:00]} 15. exd4 {[%emt 0:01:13]} Rad8 {[%emt 0:00:00]} 16. Nc3 {[%emt 0:06:19]} Rxd4 {[%emt 0:00:00]} 17. Rxd4 {[%emt 0:01:26]} Qxd4 {[%emt 0:00:00]} 18. Be3 {[%emt 0:00:06]} Qc4 {[%emt 0:00:00]} 19. Be2 {[%emt 0:05:21]} Qe6 {[%emt 0:00:00]} 20. Qxe6 {[%emt 0:02:04]} fxe6 {[%emt 0:00:00]} 21. Bxa6 {[%emt 0:00:08]} bxa6 {[%emt 0:00:00]} 22. Rc1 {[%emt 0:01:17]} Rc8 {[%emt 0:00:00]} 23. b3 {[%emt 0:08:50]} Nd5 {[%emt 0:00:00]} (23... Bf8 $14) 24. Ne4 $16 {[%emt 0:02:46]} Nxe3+ {[%emt 0:00:00]} 25. fxe3 $14 {[%emt 0:00:04][%mdl 4096] Endgame. KRB-KRN} a5 {[%emt 0:00:00]} 26. Rc5 {[%emt 0:01:37] White is more active.} ({White should try} 26. Rc4 $1 $16) 26... a4 $1 {[%emt 0:00:00]} 27. bxa4 {[%emt 0:03:28]} Bh6 {[%emt 0:00:00]} 28. Kf3 {[%emt 0:02:43]} Rc7 {[%emt 0:00:00]} 29. Rc4 {[%emt 0:03:57]} e5 {[%emt 0:00:00]} 30. Nc3 {[%emt 0:02:16]} Bf8 {[%emt 0:00:00]} 31. Ke4 {[%emt 0:02:50]} Bd6 {[%emt 0:00:00]} 32. a5 {[%emt 0:01:47]} Kf7 {[%emt 0:00:00]} 33. Na4 {[%emt 0:00:05]} Rc8 {[%emt 0:00:00]} 34. Nc5 {[%emt 0:00:32]} Ke7 {[%emt 0:00:00]} 35. Nd3 {[%emt 0:01:25]} Ke6 {[%emt 0:00:00]} 36. h4 {[%emt 0:00:50]} c5 {[%emt 0:02:31]} 37. a4 {[%emt 0:01:19]} Rc7 {[%emt 0:00:44]} 38. Nc1 {[%emt 0:00:36]} h6 {[%emt 0:06:09]} 39. Nd3 {[%emt 0:00:24]} h5 {[%emt 0:00:31]} 40. Nc1 {[%emt 0:00:30]} Rb7 {[%emt 0:03:29]} 41. Nd3 {[%emt 0:03:51] Dodges Rb4} Rb1 {[%emt 0:00:48]} 42. Nxc5+ {[%emt 0:07:13]} Bxc5 {[%emt 0:02:16]} 43. Rxc5 $11 {[%emt 0:00:36] aiming for Rc6+. KR-KR} Rb4+ {[%emt 0:00:03]} 44. Kf3 {[%emt 0:00:31]} Kd6 {[%emt 0:13:47]} 45. Rc8 {[%emt 0:11:00] Hoping for Rg8.} Rxa4 {[%emt 0:00:13]} ({Black should play} 45... Ke6 $1 $14) 46. Rg8 $18 {[%emt 0:00:04]} Rxa5 {[%emt 0:01:36]} 47. Rxg6+ {[%emt 0:00:06]} Kd5 {[%emt 0:00:08]} (47... Kc7 $16 {is a better defense.} 48. Rh6 e4+ 49. Kxe4 Rc5) 48. Rh6 $1 {[%emt 0:01:30]} Ra1 {[%emt 0:03:16]} 49. Rxh5 {[%emt 0:00:20]} Rf1+ {[%emt 0:03:49] [#]} 50. Ke2 $2 {[%emt 0:02:34]} (50. Kg2 $1 $18 {[%cal Rg2f1]} Rf8 51. Rg5) 50... Rh1 {[%emt 0:01:13]} (50... Ra1 $1 $11 {and Black has nothing to worry.}) 51. Kf3 {[%emt 0:00:19] Black must now prevent Rh7.} Rf1+ $1 {[%emt 0:00:27]} 52. Ke2 {[%emt 0:04:44]} Rh1 {[%emt 0:00:14] [#]} 53. Kf3 $2 {[%emt 0:03:40] Weighted Error Value: White=0.21 (precise) /Black=0.19 (very precise) .  Missed win:     	White=1     	---        Mistake:       	White=2     	Black=4      Inaccurate:     	White=2     	Black=4      OK:         	White=20    	Black=14     Best:        	White=5     	Black=2      Strong:       	White=1     	Black=2} (53. Rg5 $1 $16) 1/2-1/2

[Event "BL 2024-25"]
[Site "Austria"]
[Date "2024.10.12"]
[Round "4.26"]
[White "Solodovnichenko, Yuri"]
[Black "Rosner, Jonas"]
[Result "1-0"]
[Annotator "TA"]
[ECO "B13"]
[WhiteElo "2497"]
[BlackElo "2434"]
[PlyCount "59"]
[EventDate "2024.08.28"]
[EventType "team-tourn"]
[EventCountry "AUT"]
[SourceTitle "playchess.com"]
[Source "ChessBase"]
[SourceQuality "1"]
[WhiteTeam "Wien-St Veit"]
[BlackTeam "Salzburg"]
[TimeControl "40/5400+30:1800+30"]

{[%evp 14,59,25,18,15,13,34,33,50,28,46,21,13,0,29,21,12,13,24,13,35,0,134,138,351,82,304,333,369,360,377,379,352,354,356,359,373,367,424,408,485,486,574,593,709,716,728,717]} 1. e4 {[%emt 0:00:03]} c6 {[%emt 0:00:05]} 2. d4 {[%emt 0:00:04]} d5 {[%emt 0:00:06]} 3. exd5 {[%emt 0:00:03]} cxd5 {[%emt 0:00:06]} 4. Bd3 {[%emt 0:00:04]} Nc6 {[%emt 0:00:31]} 5. c3 {[%emt 0:00:06]} Nf6 {[%emt 0:00:30]} 6. h3 {[%emt 0:00:10]} e5 {[%emt 0:00:33]} 7. dxe5 {[%emt 0:00:10]} Nxe5 {[%emt 0:00:08]} 8. Nf3 {[%emt 0:00:10]} Nxd3+ {[%emt 0:00:44]} 9. Qxd3 {[%emt 0:00:07]} Bd6 {[%emt 0:00:50] OK} 10. O-O {[%emt 0:00:06] OK} O-O {[%emt 0:00:26] OK. Wit staat iets beter.} 11. Be3 {[%emt 0:01:12]} Re8 {[%emt 0:02:44]} 12. Nbd2 $1 {[%emt 0:01:42] Sterk} Ne4 {[%emt 0:05:48] OK} 13. Rfd1 {[%emt 0:04:44]} Bc7 {[%emt 0:07:01] Onnauwkeurig} (13... Bf5 $5) 14. c4 {[%emt 0:28:30][%cal Rd3d5] OK} Nxd2 {[%emt 0:12:20] OK} 15. Rxd2 {[%emt 0:00:07]} dxc4 {[%emt 0:00:37] OK} 16. Qxc4 {[%emt 0:00:58]} Qe7 {[%emt 0:01:03] OK} 17. Qc2 {[%emt 0:18:54] Voorkomt Bf5. Onnauwkeurig} (17. Rc1 $5 Ba5 18. Rdd1 $11) 17... Be5 {[%emt 0:06:04] Fout (1.3)} (17... h6 $11) 18. Re1 $1 $16 {[%emt 0:11:45] Wit is veel actiever. Sterk} Bd6 $2 {[%emt 0:12:17] [#] Verliest partij (2.1)} (18... Bc7 $16) 19. Red1 $2 $40 {[%emt 0:02:59][%mdl 128] Wit valt aan met druk. Gemiste overwinning (2.7)} (19. Qd1 $1 $18) 19... Qc7 $2 {[%emt 0:05:32] [#] Verliest partij (2.2)} (19... Bc7 $16) 20. Qa4 $1 $18 {[%emt 0:02:41] Sterk} Bd7 {[%emt 0:01:31]} 21. Qh4 {[%emt 0:02:39] OK} Be7 {[%emt 0:07:03] OK} 22. Rxd7 {[%emt 0:00:12] Beste (Gemakkelijk)} Qxd7 {[%emt 0:00:08]} 23. Rxd7 {[%emt 0:00:04]} Bxh4 {[%emt 0:00:07] OK} 24. Nxh4 {[%emt 0:00:03]} b6 {[%emt 0:00:35]} 25. Nf5 {[%emt 0:00:10] OK} Red8 {[%emt 0:01:15]} 26. Rc7 {[%emt 0:00:19] OK} Kf8 {[%emt 0:04:46]} 27. Bf4 {[%emt 0:00:44] OK. Wit is duidelijk aan het winnen.} a5 {[%emt 0:02:57]} 28. Be5 {[%emt 0:01:08] OK} g6 {[%emt 0:00:42]} 29. Nd6 {[%emt 0:01:24] OK} f6 {[%emt 0:01:33]} 30. Bxf6 {[%emt 0:00:08] Blunder waarde: Wit=0.23 (precies) /Zwart=0.54.  Verliest partij:   	---       	Zwart=2      Gemiste overwinning: 	Wit=1      	---        Fout:        	---       	Zwart=1      Onnauwkeurig:    	Wit=1      	Zwart=1      OK:         	Wit=8      	Zwart=8      Beste:        	Wit=1      	---        Sterk:        	Wit=3      	---} 1-0

[Event "BL 2024-25"]
[Site "Austria"]
[Date "2024.10.12"]
[Round "4.27"]
[White "Hacker, Jonas"]
[Black "Koellner, Ruben Gideon"]
[Result "1/2-1/2"]
[Annotator "TA"]
[ECO "D37"]
[WhiteElo "2385"]
[BlackElo "2480"]
[PlyCount "61"]
[EventDate "2024.08.28"]
[EventType "team-tourn"]
[EventCountry "AUT"]
[SourceTitle "playchess.com"]
[Source "ChessBase"]
[SourceQuality "1"]
[WhiteTeam "Salzburg"]
[BlackTeam "Wien-St Veit"]
[TimeControl "40/5400+30:1800+30"]

{[%evp 13,61,31,37,13,26,15,41,16,12,15,33,19,33,23,28,4,4,21,38,52,84,54,78,65,58,58,72,69,65,50,46,47,62,41,53,51,61,46,43,6,18,13,41,7,47,7,60,58,46,13]} 1. d4 d5 2. c4 e6 3. Nf3 Nf6 4. Nc3 Be7 5. Bf4 O-O 6. e3 b6 7. cxd5 Nxd5 8. Nxd5 {D37: Damegambiet Geweigerd: 5 Lf4.} Qxd5 9. a3 {[%cal Oa1c1] OK} c5 {Onnauwkeurig 9...Bd6 injecteert leven in deze variant.} 10. dxc5 {OK} Qxc5 11. Rc1 {OK} Qa5+ {OK} 12. Qd2 {Beste (Gemakkelijk)} Qxd2+ {OK} 13. Nxd2 Na6 14. b4 ({Verkeerd is} 14. Rxc8 $2 Raxc8 (14... Rfxc8 $2 15. Ke2 $19) 15. Kd1 Nc5 $19) 14... Bb7 {Beste} 15. Bd3 $146 {OK} ({Predecessor:} 15. e4 Rac8 16. Kd1 Rxc1+ 17. Kxc1 Nb8 18. Kb2 Rd8 19. Be2 g5 20. Be3 f5 21. exf5 exf5 {½-½ Jakubowski,K (2529)-Krysztofiak,M (2378) POL-chT 1st League 2016 (2.1)}) 15... Rac8 16. Ke2 {OK} g5 {Onnauwkeurig} 17. Be5 {Onnauwkeurig} f6 18. Bb2 Rxc1 {OK} 19. Rxc1 Rc8 {OK} 20. Rxc8+ {OK} Bxc8 21. f4 {Wit is actiever.} gxf4 {OK} 22. exf4 Nc7 {OK} 23. g3 Bb7 24. Nf3 Bd5 {OK} 25. Nd4 h6 26. Nb5 {Onnauwkeurig} Nxb5 {OK} 27. Bxb5 Kf7 {Onnauwkeurig} 28. Ke3 {Onnauwkeurig} Bd6 {Onnauwkeurig} 29. Bd3 {Onnauwkeurig} Ke7 {Fout (0.5)} (29... a5 $11) 30. Bc3 a5 {OK} 31. bxa5 {Blunder waarde: Wit=0.12 (erg precies) /Zwart=0.14 (erg precies) . Onnauwkeurig.  Fout:        	---       	Zwart=1      Onnauwkeurig:    	Wit=5      	Zwart=4      OK:         	Wit=6      	Zwart=9      Beste:        	Wit=1      	Zwart=1} 1/2-1/2

[Event "BL 2024-25"]
[Site "Austria"]
[Date "2024.10.12"]
[Round "4.28"]
[White "Antoniewski, Rafal"]
[Black "Goldbeck, Lars"]
[Result "1-0"]
[Annotator "RC"]
[ECO "B12"]
[WhiteElo "2443"]
[BlackElo "2372"]
[PlyCount "105"]
[EventDate "2024.08.28"]
[EventType "team-tourn"]
[EventCountry "AUT"]
[SourceTitle "playchess.com"]
[Source "ChessBase"]
[SourceQuality "1"]
[WhiteTeam "Wien-St Veit"]
[BlackTeam "Salzburg"]
[TimeControl "40/5400+30:1800+30"]

1. e4 {[%emt 0:00:10]} c6 {[%emt 0:00:06]} 2. d4 {[%emt 0:00:24]} d5 {[%emt 0:00:02]} 3. e5 {[%emt 0:00:37]} Bf5 {[%emt 0:00:05]} 4. Nf3 {[%emt 0:00:22]} e6 {[%emt 0:00:02]} 5. Be2 {[%emt 0:00:14]} Nd7 {[%emt 0:00:01]} 6. O-O {[%emt 0:00:29]} a5 {[%emt 0:00:02]} 7. a4 {[%emt 0:01:02]} f6 {[%emt 0:00:34]} 8. Nbd2 {[%emt 0:01:15]} Nh6 {[%emt 0:09:29]} 9. Nb3 {[%emt 0:02:19]} Nf7 {[%emt 0:00:53]} 10. Re1 {[%emt 0:01:18]} g5 {[%emt 0:08:06]} 11. Bd2 {[%emt 0:02:29]} Bg7 {[%emt 0:13:10]} 12. exf6 {[%emt 0:21:31]} Bxf6 {[%emt 0:00:37]} 13. c4 {[%emt 0:06:39]} O-O {[%emt 0:03:03]} 14. cxd5 {[%emt 0:00:09]} exd5 {[%emt 0:00:32]} 15. Bc3 {[%emt 0:02:55]} Nd6 {[%emt 0:17:19]} 16. Bd3 {[%emt 0:21:53]} Ne4 {[%emt 0:03:13]} 17. Qc2 {[%emt 0:00:33]} g4 {[%emt 0:02:33]} 18. Nfd2 {[%emt 0:01:29]} Nxd2 {[%emt 0:06:43]} 19. Bxf5 {[%emt 0:07:29]} Nxb3 {[%emt 0:00:10]} 20. Qxb3 {[%emt 0:00:04]} Bh4 {[%emt 0:00:23]} 21. Be6+ {[%emt 0:00:05]} Kh8 {[%emt 0:01:31]} 22. g3 {[%emt 0:00:05]} Bg5 {[%emt 0:02:06]} 23. Bxg4 {[%emt 0:00:47]} Nf6 {[%emt 0:01:01]} 24. Bf5 {[%emt 0:02:38]} Nh5 {[%emt 0:03:08]} 25. Qc2 {[%emt 0:00:08]} Qc7 {[%emt 0:01:51]} 26. Re5 {[%emt 0:03:57]} Bf6 {[%emt 0:00:24]} 27. Re6 {[%emt 0:06:11]} Qg7 {[%emt 0:02:45]} 28. Rd1 {[%emt 0:03:49]} Nf4 {[%emt 0:01:06]} 29. Ree1 {[%emt 0:00:29]} Rae8 {[%emt 0:01:25]} 30. Kh1 {[%emt 0:02:52]} Ng6 {[%emt 0:00:15]} 31. Rxe8 {[%emt 0:04:58]} Rxe8 {[%emt 0:00:02]} 32. Bxa5 {[%emt 0:00:09]} Ne7 {[%emt 0:01:13]} 33. Bh3 {[%emt 0:01:11]} Qh6 {[%emt 0:00:01]} 34. Bd7 {[%emt 0:00:54]} Ra8 {[%emt 0:00:50]} 35. Bc3 {[%emt 0:00:33]} Rd8 {[%emt 0:00:23]} 36. Bg4 {[%emt 0:01:43]} Bg7 {[%emt 0:01:12]} 37. Re1 {[%emt 0:00:50]} Qg5 {[%emt 0:00:06]} 38. Qe2 {[%emt 0:00:43]} Nf5 {[%emt 0:02:23]} 39. Bxf5 {[%emt 0:03:07]} Qxf5 {[%emt 0:00:02]} 40. b4 {[%emt 0:01:08]} Ra8 {[%emt 0:01:13]} 41. a5 {[%emt 0:30:06]} Rf8 {[%emt 0:30:10]} 42. Kg2 {[%emt 0:00:06]} h5 {[%emt 0:01:46]} 43. h3 {[%emt 0:00:00]} Rf7 {[%emt 0:00:00]} 44. Qe3 {[%emt 0:00:00]} Kg8 {[%emt 0:00:00]} 45. Qe2 {[%emt 0:00:00]} Kh8 {[%emt 0:00:00]} 46. Rd1 {[%emt 0:00:00]} Qe4+ {[%emt 0:00:00]} 47. Qxe4 {[%emt 0:00:00]} dxe4 {[%emt 0:00:00]} 48. Re1 {[%emt 0:00:00]} Rf3 {[%emt 0:00:00]} 49. Re3 {[%emt 0:00:00]} Rxe3 {[%emt 0:00:00]} 50. fxe3 {[%emt 0:00:00]} Kg8 {[%emt 0:00:00]} 51. d5 {[%emt 0:00:00]} Bxc3 {[%emt 0:00:00]} 52. dxc6 {[%emt 0:00:00]} Bxb4 {[%emt 0:00:00]} 53. c7 {[%emt 0:00:00]} 1-0

[Event "BL 2024-25"]
[Site "Austria"]
[Date "2024.10.12"]
[Round "4.29"]
[White "Weber, Samuel"]
[Black "Kuegel, Tobias"]
[Result "1/2-1/2"]
[Annotator "TA"]
[ECO "C00"]
[WhiteElo "2256"]
[BlackElo "2428"]
[PlyCount "116"]
[EventDate "2024.08.28"]
[EventType "team-tourn"]
[EventCountry "AUT"]
[SourceTitle "playchess.com"]
[Source "ChessBase"]
[SourceQuality "1"]
[WhiteTeam "Salzburg"]
[BlackTeam "Wien-St Veit"]
[TimeControl "40/5400+30:1800+30"]

{[%evp 15,116,-30,27,0,25,-53,-32,-32,58,-21,26,-28,-6,-29,-35,-15,-21,-29,-46,-29,-36,-28,-36,-30,-28,-34,-35,-36,-46,-64,-62,-69,-48,-65,0,0,11,-50,-21,-31,13,0,32,-13,-13,-13,-5,-21,-21,-41,-21,-30,-30,-31,-21,-31,-21,-21,-30,-30,-30,-11,-11,-30,-11,-33,-11,-33,-11,-11,-11,-11,-11,-12,-12,-32,-12,-31,-12,-30,-13,-69,-17,-60,-27,-27,-27,-27,-17,-27,0,0,0,-27,-27,-27,-27,-27,-27,-27,-27,-27,-27]} 1. Nf3 {[%emt 0:00:05]} d5 {[%emt 0:02:01]} 2. g3 {[%emt 0:00:12]} Nf6 {[%emt 0:01:11]} 3. Bg2 {[%emt 0:00:36]} e6 {[%emt 0:00:18]} 4. O-O {[%emt 0:00:28]} Be7 {[%emt 0:00:11]} 5. d3 {[%emt 0:00:26]} O-O {[%emt 0:02:50]} 6. Nbd2 {[%emt 0:00:57]} c5 {[%emt 0:03:14]} 7. e4 {[%emt 0:00:14]} Nc6 {[%emt 0:00:23][%cal Bb8c6,Bc6e5,Be5d3][%mdl 32] EV=14.95} 8. Re1 {[%emt 0:00:50]} b5 {[%emt 0:02:45]} (8... h6) 9. exd5 {[%emt 0:00:25] C00: Frans: Ongebruikelijke Wit 2e zetten.} Nxd5 {[%emt 0:01:07]} 10. c4 {[%emt 0:03:43] Fout (0.8)} (10. a4 $11 bxa4 11. Rxa4) 10... bxc4 $1 $15 {[%emt 0:07:11] Sterk} 11. dxc4 {[%emt 0:00:20] Zwart staat iets beter.} Nb6 {[%emt 0:02:10] Fout (0.9)} (11... Ndb4 $15) {Wit zou moeten spelen} 12. Ne5 {[%emt 0:12:12] Fout (0.8)} (12. b3 $1 $14) 12... Nxe5 $1 $11 {[%emt 0:00:24] Sterk} 13. Bxa8 {[%emt 0:01:08] Fout (0.5)} (13. Rxe5 Rb8 14. Re1) 13... Nd3 {[%emt 0:00:54][%cal Od3e1] Fantastisch paardenconcours. Beste (Gemakkelijk)} 14. Bg2 {[%emt 0:01:49] Beste (Gemakkelijk)} Nxe1 {[%emt 0:02:22] OK} 15. Qxe1 {[%emt 0:01:27]} Qd4 {[%emt 0:10:01][%cal Oc8a6] Remt b3. OK} 16. Qe4 $146 {[%emt 0:06:51]} ({Predecessor:} 16. Bf1 Ba6 17. Qe4 Qxe4 18. Nxe4 Bxc4 19. Be3 Bxf1 20. Kxf1 Rc8 21. Rc1 Nd5 22. Bd2 {0-1 Lukas,A (2038)-Ghulyan,J (1766) EU Universities Rapid 2022 (7.15)}) 16... Qxe4 {[%emt 0:07:36]} (16... e5 $5 {is complexer.} 17. Rb1 Rd8 18. b3 Qxe4 19. Bxe4 f5) 17. Bxe4 {[%emt 0:00:21]} f5 {[%emt 0:02:31] OK} 18. Bg2 {[%emt 0:10:59] OK} Bf6 {[%emt 0:07:24] OK} 19. Rb1 {[%emt 0:05:54] OK} Rd8 {[%emt 0:02:54]} 20. Kf1 {[%emt 0:03:20] Beste} Ba6 {[%emt 0:11:05] OK} 21. b3 {[%emt 0:08:16] OK} Nd5 {[%emt 0:00:45] OK} 22. Bxd5 {[%emt 0:06:49]} exd5 {[%emt 0:00:34]} 23. Ba3 {[%emt 0:22:35]} Bc3 {[%emt 0:12:52] OK} 24. Ke2 {[%emt 0:01:00] OK} {Zwart zou moeten spelen} Bxd2 {[%emt 0:06:08] Fout (0.8)} (24... Bd4 $15) 25. Kxd2 {[%emt 0:00:07]} dxc4+ $15 {[%emt 0:00:13][%mdl 4096] Eindspel. KRB-KRB. Beste (Gemakkelijk)} {Wit zou moeten proberen} 26. Kc3 {[%emt 0:04:39] Fout (0.6)} (26. Kc2 $11) 26... Rd3+ {[%emt 0:03:10] Onnauwkeurig} 27. Kc2 {[%emt 0:00:10] OK} cxb3+ {[%emt 0:08:36] Onnauwkeurig} 28. Rxb3 {[%emt 0:00:11]} c4 {[%emt 0:01:47] Onnauwkeurig} 29. Rxd3 {[%emt 0:01:30] Onnauwkeurig} cxd3+ $14 {[%emt 0:00:01] KB-KB} 30. Kc3 {[%emt 0:00:25] [#] OK} Bc4 $1 {[%emt 0:01:35]} 31. Bc1 {[%emt 0:01:23]} (31. Kxc4 $2 {te hebberig.} d2 32. Bc5 d1=Q $19 (32... d1=R 33. Bxa7 Ra1 34. Kb3 $17)) (31. Bc5 d2) 31... Bxa2 {[%emt 0:00:46] OK} 32. Kxd3 {[%emt 0:00:06] OK} a5 {[%emt 0:00:44]} 33. h4 {[%emt 0:00:28]} Kf7 {[%emt 0:00:31] OK} 34. Kd4 {[%emt 0:00:40]} Ke6 {[%emt 0:00:40]} 35. Bf4 {[%emt 0:02:33]} a4 {[%emt 0:00:19]} 36. Kc5 {[%emt 0:00:29] OK} Bb3 {[%emt 0:00:34]} 37. Kb4 {[%emt 0:00:11] OK} Kd5 {[%emt 0:00:25] OK} 38. Be3 {[%emt 0:00:28]} Ke4 {[%emt 0:00:24]} 39. Kc3 {[%emt 0:00:23]} Kf3 {[%emt 0:00:39]} 40. Kb2 {[%emt 0:00:24]} Kg4 {[%emt 0:00:26]} 41. Kc3 {[%emt 0:31:50]} Bd1 {[%emt 0:02:44]} 42. Kb4 {[%emt 0:00:00] OK} h6 {[%emt 0:00:49]} 43. Ka3 {[%emt 0:00:00]} Kf3 {[%emt 0:01:18]} 44. Kb4 {[%emt 0:00:00] OK} Ke4 {[%emt 0:00:11]} 45. Ka3 {[%emt 0:00:00]} Kd3 {[%emt 0:00:20]} 46. Kb2 {[%emt 0:00:00]} Bb3 {[%emt 0:00:36]} 47. Ka1 {[%emt 0:00:00]} a3 {[%emt 0:01:14]} {Beter is} 48. Kb1 {[%emt 0:00:00] Fout (0.6)} (48. Bc5 $11) {Zwart kan overwegen} 48... Kc3 {[%emt 0:04:20] Fout (0.5)} (48... a2+ $15 49. Kb2 h5) 49. Bf4 {[%emt 0:00:00] Onnauwkeurig} Kd4 {[%emt 0:00:31] Onnauwkeurig} 50. Bd6 {[%emt 0:00:00] OK} a2+ {[%emt 0:00:36] OK} 51. Kb2 {[%emt 0:00:00] OK} Ke4 {[%emt 0:02:41][%cal Oh6h5]} 52. Bf8 {[%emt 0:00:00]} Kf3 {[%emt 0:01:15][%cal Og7g6] Onnauwkeurig} 53. Bxg7 {[%emt 0:00:00] Beste (Gemakkelijk)} Kxf2 {[%emt 0:02:36] OK} 54. Be5 {[%emt 0:00:00] Onnauwkeurig} Bd5 {[%emt 0:00:29] Zwart heeft hier iets.} 55. Bf4 {[%emt 0:00:00]} h5 {[%emt 0:00:10]} 56. Ka1 {[%emt 0:00:00]} Kf3 {[%emt 0:00:16] OK} 57. Kb2 {[%emt 0:00:00]} Kf2 {[%emt 0:00:08]} 58. Ka1 {[%emt 0:00:00]} Kf3 {[%emt 0:00:10] Blunder waarde: Wit=0.18 (erg precies) /Zwart=0.17 (erg precies) .  Fout:        	Wit=5      	Zwart=3      Onnauwkeurig:    	Wit=3      	Zwart=5      OK:         	Wit=13     	Zwart=13     Beste:        	Wit=3      	Zwart=2      Sterk:        	---       	Zwart=2} 1/2-1/2

[Event "BL 2024-25"]
[Site "Austria"]
[Date "2024.10.12"]
[Round "4.30"]
[White "Schachinger, Mario"]
[Black "Leeb, Simon"]
[Result "1-0"]
[Annotator "TA"]
[ECO "D15"]
[WhiteElo "2385"]
[BlackElo "2219"]
[PlyCount "73"]
[EventDate "2024.08.28"]
[EventType "team-tourn"]
[EventCountry "AUT"]
[SourceTitle "playchess.com"]
[Source "ChessBase"]
[SourceQuality "1"]
[WhiteTeam "Wien-St Veit"]
[BlackTeam "Salzburg"]
[TimeControl "40/5400+30:1800+30"]

{[%evp 9,73,21,30,16,20,22,29,29,41,0,0,-98,0,9,18,20,27,18,20,14,33,8,23,14,18,18,27,33,36,15,36,31,41,21,22,0,5,12,38,31,35,25,35,29,40,47,58,46,93,95,115,113,110,119,127,90,97,59,628,598,641,633,629,622,617,617]} 1. d4 {[%emt 0:00:12]} d5 {[%emt 0:00:33]} 2. c4 {[%emt 0:00:08]} c6 {[%emt 0:00:06]} 3. Nf3 {[%emt 0:00:16]} Nf6 {[%emt 0:00:56]} 4. Nc3 {[%emt 0:00:11]} a6 {[%emt 0:00:30]} 5. e3 {[%emt 0:00:43]} Bf5 {[%emt 0:01:17]} 6. Bd3 {[%emt 0:01:51]} Bxd3 {[%emt 0:00:10]} 7. Qxd3 {[%emt 0:00:02]} Nbd7 {[%emt 0:00:21]} 8. O-O {[%emt 0:00:39] White has an edge.} e6 {[%emt 0:00:42]} 9. Bd2 {[%emt 0:07:24]} Be7 {[%emt 0:10:09]} 10. e4 {[%emt 0:02:46] [#]} (10. Rfd1 $11) 10... dxe4 {[%emt 0:00:04]} (10... Nc5 $1 $17 {[%cal Rc5d3]} 11. dxc5 dxe4 12. Qxd8+ Rxd8) 11. Nxe4 $11 {[%emt 0:00:08]} Nxe4 {[%emt 0:00:06]} 12. Qxe4 {[%emt 0:00:08]} Nf6 {[%emt 0:00:36]} 13. Qe2 {[%emt 0:02:32]} O-O {[%emt 0:06:08]} 14. Rad1 {[%emt 0:11:42]} Qb6 {[%emt 0:14:20]} 15. b3 {[%emt 0:12:13]} a5 {[%emt 0:14:04][%cal Ba6a5,Ba5a4][%mdl 32]} 16. g3 {[%emt 0:06:10]} a4 {[%emt 0:11:27] [#]} 17. b4 $1 {[%emt 0:01:09]} a3 {[%emt 0:00:07]} (17... Bxb4 $2 18. Rb1 $18) (17... Qa6 18. a3) 18. Rb1 {[%emt 0:01:28]} Ra4 {[%emt 0:08:56]} 19. c5 {[%emt 0:08:12]} Qb5 {[%emt 0:01:12]} 20. Qxb5 {[%emt 0:01:30]} cxb5 {[%emt 0:00:05]} 21. Rfd1 {[%emt 0:00:41]} Nd5 {[%emt 0:03:02]} 22. Be1 {[%emt 0:01:01]} Bf6 {[%emt 0:01:46]} 23. Rd3 {[%emt 0:02:44]} g5 {[%emt 0:01:28]} 24. h3 {[%emt 0:02:56]} Ne7 {[%emt 0:06:51]} 25. Bc3 {[%emt 0:03:57][%cal Be1c3,Bc3d2,Bd2g5,Bg5f6,Bf6e5][%mdl 32]} Rd8 {[%emt 0:03:23]} 26. Ne1 $1 {[%emt 0:02:36]} Nd5 {[%emt 0:03:29] Hoping for ...Nxc3.} 27. Bd2 {[%emt 0:00:20]} Ne7 {[%emt 0:02:49][%cal Oe7c6]} 28. Nc2 {[%emt 0:11:35]} e5 {[%emt 0:03:28]} (28... h6 $14 {feels stronger.}) 29. Rf3 $16 {[%emt 0:00:18]} ({Don't play} 29. Rxa3 exd4 30. Rxa4 bxa4 $11) 29... Kg7 {[%emt 0:02:54]} 30. dxe5 $1 {[%emt 0:03:43]} ({Much worse is} 30. Rxa3 $6 exd4 31. Rxa4 bxa4 $11) 30... Bxe5 {[%emt 0:00:04]} 31. Bxg5 {[%emt 0:00:12]} f6 {[%emt 0:00:03]} 32. Re1 {[%emt 0:00:48] Rxe5 is the strong threat.} Nc6 {[%emt 0:01:05]} 33. Rxe5 {[%emt 0:01:01]} Nxe5 $4 {[%emt 0:00:56][%mdl 8192] This move loses the game for Black.} (33... Rd1+ $14 34. Re1 Rxe1+ 35. Nxe1 fxg5) 34. Bxf6+ $18 {[%emt 0:00:08] White is clearly winning.} (34. Rxa3 $2 {loses.} fxg5 35. Re3 Rxa2 36. Rxe5 Rxc2 $19) 34... Kg8 {[%emt 0:00:07]} 35. Bxe5 {[%emt 0:16:36]} Rd2 {[%emt 0:00:06]} 36. Rc3 {[%emt 0:00:00]} Kf7 {[%emt 0:03:07]} 37. Kg2 {[%emt 0:00:00] Weighted Error Value: White=0.15 (very precise) /Black=0.29 (precise) .  Loses game:     	---       	Black=1      Mistake:       	White=1     	Black=2      Inaccurate:     	White=2     	Black=1      OK:         	White=10    	Black=7      Best:        	White=1     	Black=1      Strong:       	White=2     	---} 1-0